[Event "*** Titled Tuesday Blitz"]
[Site "Chess.com"]
[Date "2020.05.19"]
[Round "8"]
[White "chessablanca"]
[Black "Harry_Rakkel"]
[Result "0-1"]
[WhiteElo "2448"]
[BlackElo "2575"]
[TimeControl "180+1"]
[EndTime "13:37:40 PDT"]
[Termination "Harry_Rakkel won by checkmate"]

1. g3 {[%clk 0:02:37.3]} 1... d5 {[%clk 0:02:58.7]} 2. Bg2 {[%clk 0:02:35.5]}
2... e5 {[%clk 0:02:57.1]} 3. c4 {[%clk 0:02:35.7]} 3... Nf6 {[%clk 0:02:54.8]}
4. cxd5 {[%clk 0:02:35.6]} 4... Nxd5 {[%clk 0:02:54.6]} 5. Nc3 {[%clk
0:02:36.3]} 5... Nb6 {[%clk 0:02:54.6]} 6. Nf3 {[%clk 0:02:34.2]} 6... Nc6
{[%clk 0:02:53.9]} 7. O-O {[%clk 0:02:33.5]} 7... Be7 {[%clk 0:02:53.6]} 8. d3
{[%clk 0:02:33.8]} 8... O-O {[%clk 0:02:53.9]} 9. b3 {[%clk 0:02:23.9]} 9... Re8
{[%clk 0:02:46.9]} 10. Bb2 {[%clk 0:02:23.6]} 10... Bg4 {[%clk 0:02:44.8]} 11.
h3 {[%clk 0:02:19.5]} 11... Bh5 {[%clk 0:02:42.3]} 12. Rc1 {[%clk 0:02:15.1]}
12... Bf8 {[%clk 0:02:39.4]} 13. g4 {[%clk 0:02:09.7]} 13... Bg6 {[%clk
0:02:38.3]} 14. a3 {[%clk 0:02:09.6]} 14... h5 {[%clk 0:02:36.6]} 15. b4 {[%clk
0:02:03.9]} 15... hxg4 {[%clk 0:02:35.3]} 16. hxg4 {[%clk 0:02:03.8]} 16... a5
{[%clk 0:02:32.2]} 17. b5 {[%clk 0:02:02]} 17... Nd4 {[%clk 0:02:31.8]} 18. Nxd4
{[%clk 0:02:00.9]} 18... exd4 {[%clk 0:02:31.6]} 19. Ne4 {[%clk 0:01:59.3]}
19... Nd5 {[%clk 0:02:25.2]} 20. Bxd4 {[%clk 0:01:46.7]} 20... Nf4 {[%clk
0:02:24.1]} 21. Be3 {[%clk 0:01:46.6]} 21... Nxg2 {[%clk 0:02:19.6]} 22. Kxg2
{[%clk 0:01:46.2]} 22... Bxa3 {[%clk 0:02:19.9]} 23. Ra1 {[%clk 0:01:41.2]}
23... Bb2 {[%clk 0:02:10]} 24. Rb1 {[%clk 0:01:39.1]} 24... Bd4 {[%clk
0:02:04.5]} 25. Bxd4 {[%clk 0:01:32.9]} 25... Qxd4 {[%clk 0:02:03.7]} 26. e3
{[%clk 0:01:21.7]} 26... Bxe4+ {[%clk 0:02:01.4]} 27. dxe4 {[%clk 0:01:21.6]}
27... Qxe4+ {[%clk 0:02:01.3]} 28. Qf3 {[%clk 0:01:22.2]} 28... Qxf3+ {[%clk
0:01:37]} 29. Kxf3 {[%clk 0:01:23.1]} 29... Kf8 {[%clk 0:01:35.8]} 30. Rfc1
{[%clk 0:01:22.1]} 30... Rec8 {[%clk 0:01:34.8]} 31. Rc5 {[%clk 0:01:14]} 31...
a4 {[%clk 0:01:32.1]} 32. Ra1 {[%clk 0:01:12.3]} 32... Ra5 {[%clk 0:01:31.5]}
33. Ke4 {[%clk 0:01:04.5]} 33... a3 {[%clk 0:01:28.6]} 34. Kd4 {[%clk
0:00:53.4]} 34... b6 {[%clk 0:01:20.4]} 35. Rd5 {[%clk 0:00:49.2]} 35... a2
{[%clk 0:01:14.8]} 36. e4 {[%clk 0:00:25.4]} 36... Rca8 {[%clk 0:01:03.7]} 37.
Kc3 {[%clk 0:00:20]} 37... Ke7 {[%clk 0:00:59.9]} 38. f3 {[%clk 0:00:18.7]}
38... f6 {[%clk 0:00:58.4]} 39. Kb2 {[%clk 0:00:18.8]} 39... Ra4 {[%clk
0:00:54.3]} 40. Rd2 {[%clk 0:00:17.7]} 40... Ra3 {[%clk 0:00:52.1]} 41. Rc2
{[%clk 0:00:16.3]} 41... Kd7 {[%clk 0:00:50.8]} 42. Rd2+ {[%clk 0:00:16.2]}
42... Kc8 {[%clk 0:00:50.7]} 43. Rf2 {[%clk 0:00:15.6]} 43... R8a5 {[%clk
0:00:49.9]} 44. f4 {[%clk 0:00:14.2]} 44... R3a4 {[%clk 0:00:49]} 45. Kc3 {[%clk
0:00:10.2]} 45... Rxe4 {[%clk 0:00:45]} 46. Raxa2 {[%clk 0:00:10.1]} 46... Rxa2
{[%clk 0:00:44.4]} 47. Rxa2 {[%clk 0:00:09.6]} 47... Rxf4 {[%clk 0:00:44.8]} 48.
Rg2 {[%clk 0:00:10.2]} 48... g5 {[%clk 0:00:43.8]} 49. Kb3 {[%clk 0:00:10.3]}
49... Kd7 {[%clk 0:00:42.3]} 50. Kc3 {[%clk 0:00:10.6]} 50... Ke7 {[%clk
0:00:41.7]} 51. Kb3 {[%clk 0:00:10.3]} 51... Kd6 {[%clk 0:00:41.8]} 52. Rd2+
{[%clk 0:00:09.1]} 52... Kc5 {[%clk 0:00:41.4]} 53. Rd7 {[%clk 0:00:08.7]} 53...
Kxb5 {[%clk 0:00:41.7]} 54. Rxc7 {[%clk 0:00:09]} 54... Rxg4 {[%clk 0:00:42.2]}
55. Rf7 {[%clk 0:00:09.5]} 55... Rf4 {[%clk 0:00:42.4]} 56. Kc3 {[%clk
0:00:10.1]} 56... Kc5 {[%clk 0:00:42.5]} 57. Kd3 {[%clk 0:00:09.8]} 57... b5
{[%clk 0:00:42.6]} 58. Rc7+ {[%clk 0:00:10.2]} 58... Kd6 {[%clk 0:00:42.4]} 59.
Rb7 {[%clk 0:00:10.4]} 59... b4 {[%clk 0:00:42.5]} 60. Ke3 {[%clk 0:00:10]}
60... Ke5 {[%clk 0:00:42.1]} 61. Rb5+ {[%clk 0:00:09.9]} 61... Ke6 {[%clk
0:00:42.8]} 62. Rb6+ {[%clk 0:00:10.2]} 62... Kf5 {[%clk 0:00:43]} 63. Rb5+
{[%clk 0:00:10.5]} 63... Kg4 {[%clk 0:00:43.5]} 64. Rb6 {[%clk 0:00:10.8]} 64...
Kg3 {[%clk 0:00:43.5]} 65. Rb5 {[%clk 0:00:10.5]} 65... Rc4 {[%clk 0:00:42.4]}
66. Rf5 {[%clk 0:00:09.9]} 66... Rf4 {[%clk 0:00:41.8]} 67. Rc5 {[%clk
0:00:09.6]} 67... g4 {[%clk 0:00:41.8]} 68. Rc1 {[%clk 0:00:09.5]} 68... Rf3+
{[%clk 0:00:41.5]} 69. Ke4 {[%clk 0:00:09.4]} 69... f5+ {[%clk 0:00:41.5]} 70.
Kd4 {[%clk 0:00:08.9]} 70... b3 {[%clk 0:00:42.4]} 71. Rg1+ {[%clk 0:00:07.8]}
71... Kh2 {[%clk 0:00:42.5]} 72. Rb1 {[%clk 0:00:07.8]} 72... g3 {[%clk
0:00:42.7]} 73. Ke5 {[%clk 0:00:07.2]} 73... g2 {[%clk 0:00:42.7]} 74. Rb2
{[%clk 0:00:07.8]} 74... Kh1 {[%clk 0:00:41.6]} 75. Rb1+ {[%clk 0:00:06.9]}
75... g1=Q {[%clk 0:00:41.8]} 76. Rxg1+ {[%clk 0:00:07.8]} 76... Kxg1 {[%clk
0:00:41.5]} 77. Kd4 {[%clk 0:00:08.7]} 77... b2 {[%clk 0:00:41.2]} 78. Ke5
{[%clk 0:00:09.6]} 78... b1=Q {[%clk 0:00:42]} 79. Kf6 {[%clk 0:00:10.5]} 79...
Qb6+ {[%clk 0:00:42.2]} 80. Kg5 {[%clk 0:00:10.6]} 80... Rg3+ {[%clk 0:00:43.1]}
81. Kh4 {[%clk 0:00:11]} 81... Rg4+ {[%clk 0:00:43.5]} 82. Kh5 {[%clk
0:00:11.9]} 82... Qg6# {[%clk 0:00:43.2]} 0-1

[Event "*** Titled Tuesday Blitz"]
[Site "Chess.com"]
[Date "2020.05.19"]
[Round "8"]
[White "vanea_03"]
[Black "nabukatnezarr"]
[Result "0-1"]
[WhiteElo "2632"]
[BlackElo "2537"]
[TimeControl "180+1"]
[EndTime "13:37:41 PDT"]
[Termination "nabukatnezarr won by resignation"]

1. d4 {[%clk 0:03:00.9]} 1... e6 {[%clk 0:03:00.9]} 2. c4 {[%clk 0:03:00.4]}
2... Nf6 {[%clk 0:03:01]} 3. g3 {[%clk 0:03:00.3]} 3... c5 {[%clk 0:03:00.7]} 4.
Nf3 {[%clk 0:02:59.9]} 4... cxd4 {[%clk 0:03:00.3]} 5. Nxd4 {[%clk 0:03:00.8]}
5... d5 {[%clk 0:03:00.6]} 6. Bg2 {[%clk 0:03:01.3]} 6... e5 {[%clk 0:03:00.2]}
7. Nf3 {[%clk 0:03:01.8]} 7... d4 {[%clk 0:03:00.4]} 8. O-O {[%clk 0:03:02.5]}
8... Nc6 {[%clk 0:03:00.6]} 9. e3 {[%clk 0:03:03.1]} 9... Be7 {[%clk 0:03:01]}
10. exd4 {[%clk 0:03:03.6]} 10... exd4 {[%clk 0:03:01.9]} 11. a3 {[%clk
0:03:04.3]} 11... Be6 {[%clk 0:03:01.2]} 12. b4 {[%clk 0:03:04.7]} 12... Bxc4
{[%clk 0:02:54.8]} 13. Re1 {[%clk 0:03:05.1]} 13... O-O {[%clk 0:02:51.9]} 14.
Nbd2 {[%clk 0:03:05.6]} 14... Be6 {[%clk 0:02:51.1]} 15. Bb2 {[%clk 0:03:06.2]}
15... Qd7 {[%clk 0:02:41.8]} 16. Nb3 {[%clk 0:02:54.7]} 16... d3 {[%clk
0:02:16]} 17. b5 {[%clk 0:02:46.6]} 17... Nd8 {[%clk 0:01:04.8]} 18. Nbd4 {[%clk
0:02:44.4]} 18... Bd5 {[%clk 0:00:43.3]} 19. Qxd3 {[%clk 0:02:40.4]} 19... Ne6
{[%clk 0:00:43.5]} 20. Nxe6 {[%clk 0:02:34.4]} 20... Bxe6 {[%clk 0:00:42.7]} 21.
Qxd7 {[%clk 0:02:35]} 21... Nxd7 {[%clk 0:00:43.6]} 22. Nd4 {[%clk 0:02:35.2]}
22... Nc5 {[%clk 0:00:25.1]} 23. Nxe6 {[%clk 0:02:24.4]} 23... fxe6 {[%clk
0:00:26]} 24. Rad1 {[%clk 0:02:24.3]} 24... Bf6 {[%clk 0:00:24.6]} 25. Bxf6
{[%clk 0:02:20]} 25... Rxf6 {[%clk 0:00:25.5]} 26. Re5 {[%clk 0:02:18.8]} 26...
Rc8 {[%clk 0:00:22.9]} 27. f4 {[%clk 0:02:10.5]} 27... b6 {[%clk 0:00:23.2]} 28.
Bc6 {[%clk 0:02:10]} 28... Rff8 {[%clk 0:00:21.2]} 29. Ree1 {[%clk 0:01:59.7]}
29... Rcd8 {[%clk 0:00:21.7]} 30. a4 {[%clk 0:01:58.4]} 30... Kf7 {[%clk
0:00:21.9]} 31. a5 {[%clk 0:01:57.8]} 31... Ke7 {[%clk 0:00:19.9]} 32. axb6
{[%clk 0:01:54.6]} 32... axb6 {[%clk 0:00:19.5]} 33. Ra1 {[%clk 0:01:55.2]}
33... Kf6 {[%clk 0:00:17.9]} 34. Re2 {[%clk 0:01:48]} 34... Rd4 {[%clk
0:00:16.7]} 35. Ra7 {[%clk 0:01:48]} 35... Rfd8 {[%clk 0:00:16.7]} 36. Kf2
{[%clk 0:01:41.6]} 36... h6 {[%clk 0:00:16.4]} 37. h3 {[%clk 0:01:40.7]} 37...
Nd3+ {[%clk 0:00:16]} 38. Kg2 {[%clk 0:01:37.4]} 38... Nc5 {[%clk 0:00:16.9]}
39. Raa2 {[%clk 0:01:33.8]} 39... g5 {[%clk 0:00:16.1]} 40. fxg5+ {[%clk
0:01:33.4]} 40... hxg5 {[%clk 0:00:17]} 41. Bf3 {[%clk 0:01:26.1]} 41... e5
{[%clk 0:00:15.7]} 42. Bg4 {[%clk 0:01:25.5]} 42... e4 {[%clk 0:00:15.4]} 43.
Rf2+ {[%clk 0:01:25.2]} 43... Kg6 {[%clk 0:00:15.9]} 44. Bf5+ {[%clk 0:01:25.8]}
44... Kg7 {[%clk 0:00:15]} 45. Ra7+ {[%clk 0:01:26]} 45... Kg8 {[%clk
0:00:08.3]} 46. Bh7+ {[%clk 0:01:23.9]} 46... Kh8 {[%clk 0:00:08.1]} 47. Bf5
{[%clk 0:01:11.6]} 47... Rd2 {[%clk 0:00:08.6]} 48. Re7 {[%clk 0:01:08.4]} 48...
Rxf2+ {[%clk 0:00:05.7]} 49. Kxf2 {[%clk 0:01:09.3]} 49... Rd2+ {[%clk
0:00:06.2]} 50. Ke1 {[%clk 0:01:09.9]} 50... Rd3 {[%clk 0:00:05.9]} 51. Rh7+
{[%clk 0:01:06.2]} 51... Kg8 {[%clk 0:00:05.9]} 52. g4 {[%clk 0:01:07.1]} 52...
Re3+ {[%clk 0:00:05.5]} 53. Kf2 {[%clk 0:01:06.4]} 53... Rf3+ {[%clk 0:00:06.1]}
54. Kg2 {[%clk 0:01:07]} 54... Rb3 {[%clk 0:00:06]} 55. Rh5 {[%clk 0:01:03.9]}
55... Rb2+ {[%clk 0:00:06.4]} 56. Kf1 {[%clk 0:01:03.5]} 56... Rb1+ {[%clk
0:00:06.6]} 57. Ke2 {[%clk 0:01:04]} 57... Rb2+ {[%clk 0:00:07]} 58. Kd1 {[%clk
0:01:03.8]} 58... Kg7 {[%clk 0:00:06]} 59. Rxg5+ {[%clk 0:01:03.8]} 59... Kf6
{[%clk 0:00:06.7]} 60. Rg6+ {[%clk 0:01:04.1]} 60... Ke5 {[%clk 0:00:07.2]} 61.
Re6+ {[%clk 0:01:02.5]} 61... Kf4 {[%clk 0:00:07.8]} 62. h4 {[%clk 0:01:00.1]}
62... Rh2 {[%clk 0:00:06.9]} 63. h5 {[%clk 0:00:59.9]} 63... e3 {[%clk
0:00:07.2]} 64. h6 {[%clk 0:00:58.4]} 64... Nb3 {[%clk 0:00:06.7]} 65. h7 {[%clk
0:00:56.4]} 65... Kf3 {[%clk 0:00:07.2]} 66. Be4+ {[%clk 0:00:50.3]} 66... Kg3
{[%clk 0:00:06.3]} 67. Bf5 {[%clk 0:00:42.9]} 67... Rh1+ {[%clk 0:00:06.3]} 68.
Kc2 {[%clk 0:00:41.1]} 68... Nd4+ {[%clk 0:00:06.8]} 69. Kd3 {[%clk 0:00:41.7]}
69... Nxe6 {[%clk 0:00:07.6]} 70. Bxe6 {[%clk 0:00:41.7]} 70... Rxh7 {[%clk
0:00:07]} 71. Bf5 {[%clk 0:00:39.9]} 71... Re7 {[%clk 0:00:07.8]} 72. Ke2 {[%clk
0:00:40.6]} 72... Kf4 {[%clk 0:00:08]} 73. Bc8 {[%clk 0:00:40.9]} 73... Re5
{[%clk 0:00:08.4]} 74. Bd7 {[%clk 0:00:40.4]} 74... Rd5 {[%clk 0:00:08.9]} 75.
Bc6 {[%clk 0:00:40.4]} 75... Rd2+ {[%clk 0:00:09.8]} 76. Ke1 {[%clk 0:00:39.8]}
76... Kxg4 {[%clk 0:00:09.7]} 0-1

[Event "*** Titled Tuesday Blitz"]
[Site "Chess.com"]
[Date "2020.05.19"]
[Round "8"]
[White "Corpescador"]
[Black "andriipalchuk"]
[Result "0-1"]
[WhiteElo "2354"]
[BlackElo "2046"]
[TimeControl "180+1"]
[EndTime "13:37:43 PDT"]
[Termination "andriipalchuk won by resignation"]

1. e4 {[%clk 0:03:00.9]} 1... c6 {[%clk 0:02:59.4]} 2. Nc3 {[%clk 0:03:00.6]}
2... d5 {[%clk 0:02:59.9]} 3. Nf3 {[%clk 0:03:00.7]} 3... dxe4 {[%clk
0:03:00.3]} 4. Nxe4 {[%clk 0:03:00.2]} 4... Nf6 {[%clk 0:03:01.2]} 5. Qe2 {[%clk
0:03:00]} 5... Nxe4 {[%clk 0:03:00.7]} 6. Qxe4 {[%clk 0:02:59.8]} 6... Qd5
{[%clk 0:03:01]} 7. Qf4 {[%clk 0:02:53.9]} 7... Qf5 {[%clk 0:03:00.5]} 8. d3
{[%clk 0:02:54]} 8... Qxf4 {[%clk 0:02:57.2]} 9. Bxf4 {[%clk 0:02:54.9]} 9... f6
{[%clk 0:02:57.7]} 10. g3 {[%clk 0:02:45.8]} 10... e5 {[%clk 0:02:57.3]} 11. Bd2
{[%clk 0:02:40.8]} 11... Be6 {[%clk 0:02:51.8]} 12. Bg2 {[%clk 0:02:37]} 12...
Nd7 {[%clk 0:02:52.1]} 13. a4 {[%clk 0:02:35.3]} 13... a5 {[%clk 0:02:48.2]} 14.
O-O {[%clk 0:02:28.1]} 14... Bc5 {[%clk 0:02:38.9]} 15. Rfe1 {[%clk 0:02:26.5]}
15... Kf7 {[%clk 0:02:36.3]} 16. Re2 {[%clk 0:02:00.9]} 16... Rhe8 {[%clk
0:02:31.8]} 17. Rae1 {[%clk 0:01:59.7]} 17... Nb6 {[%clk 0:02:25.9]} 18. b3
{[%clk 0:01:40.7]} 18... Nd5 {[%clk 0:02:25.2]} 19. h3 {[%clk 0:01:25.4]} 19...
b6 {[%clk 0:01:52.5]} 20. Kh2 {[%clk 0:01:24.4]} 20... Ra7 {[%clk 0:01:31.4]}
21. Nh4 {[%clk 0:01:22.6]} 21... g6 {[%clk 0:01:04]} 22. Nf3 {[%clk 0:01:07]}
22... Rae7 {[%clk 0:00:51.6]} 23. Ng1 {[%clk 0:01:01.4]} 23... Bd6 {[%clk
0:00:42]} 24. Nf3 {[%clk 0:00:51]} 24... Bd7 {[%clk 0:00:38.5]} 25. Rd1 {[%clk
0:00:44.5]} 25... Kg7 {[%clk 0:00:20]} 26. Be1 {[%clk 0:00:44]} 26... h6 {[%clk
0:00:16.7]} 27. Ra1 {[%clk 0:00:41.4]} 27... f5 {[%clk 0:00:15.4]} 28. Bd2
{[%clk 0:00:38.6]} 28... g5 {[%clk 0:00:15.1]} 29. Ne1 {[%clk 0:00:35.8]} 29...
Kg6 {[%clk 0:00:14.4]} 30. Nf3 {[%clk 0:00:33.2]} 30... e4 {[%clk 0:00:13.5]}
31. dxe4 {[%clk 0:00:32.7]} 31... fxe4 {[%clk 0:00:14.4]} 32. Nd4 {[%clk
0:00:32.3]} 32... e3 {[%clk 0:00:14.4]} 33. fxe3 {[%clk 0:00:24.9]} 33... Nxe3
{[%clk 0:00:14]} 34. Rae1 {[%clk 0:00:21.7]} 34... Nf5 {[%clk 0:00:09]} 35. Rxe7
{[%clk 0:00:17.8]} 35... Bxg3+ {[%clk 0:00:08.9]} 36. Kh1 {[%clk 0:00:16.4]}
36... Rxe7 {[%clk 0:00:09.3]} 37. Rxe7 {[%clk 0:00:15.3]} 37... Nxe7 {[%clk
0:00:10.2]} 38. Be3 {[%clk 0:00:11.4]} 38... Be5 {[%clk 0:00:09.9]} 39. Nf3
{[%clk 0:00:11.1]} 39... Bc7 {[%clk 0:00:09.9]} 40. Nd2 {[%clk 0:00:11.1]} 40...
Nf5 {[%clk 0:00:10.2]} 41. Be4 {[%clk 0:00:11]} 41... Kf6 {[%clk 0:00:10.2]} 42.
Bf2 {[%clk 0:00:10.8]} 42... Ng3+ {[%clk 0:00:10.2]} 43. Kg2 {[%clk 0:00:10.2]}
43... Nxe4 {[%clk 0:00:10.6]} 44. Nxe4+ {[%clk 0:00:11]} 44... Ke5 {[%clk
0:00:10.9]} 45. Nd2 {[%clk 0:00:11.1]} 45... Kd5 {[%clk 0:00:10.1]} 46. c4+
{[%clk 0:00:10.5]} 46... Ke6 {[%clk 0:00:10.3]} 47. Ne4 {[%clk 0:00:10.3]} 47...
c5 {[%clk 0:00:10.1]} 48. Nc3 {[%clk 0:00:10.4]} 48... Bc6+ {[%clk 0:00:10.4]}
49. Kf1 {[%clk 0:00:09.9]} 49... Be5 {[%clk 0:00:11]} 50. Ne2 {[%clk 0:00:09.8]}
50... Kf5 {[%clk 0:00:11.1]} 51. Bg3 {[%clk 0:00:09.2]} 51... h5 {[%clk
0:00:10.9]} 52. Bxe5 {[%clk 0:00:08.7]} 52... Kxe5 {[%clk 0:00:11.6]} 53. Ng3
{[%clk 0:00:09.5]} 53... Be8 {[%clk 0:00:11.9]} 54. Ke2 {[%clk 0:00:08.6]} 54...
Kf4 {[%clk 0:00:12.4]} 55. Nf1 {[%clk 0:00:08.6]} 55... Bd7 {[%clk 0:00:12.3]}
56. Kf2 {[%clk 0:00:07.9]} 56... Bxh3 {[%clk 0:00:11.7]} 57. Ne3 {[%clk
0:00:08.8]} 57... Be6 {[%clk 0:00:12.2]} 58. Nf1 {[%clk 0:00:07.4]} 58... h4
{[%clk 0:00:12.4]} 59. Nd2 {[%clk 0:00:07.7]} 59... g4 {[%clk 0:00:12.7]} 60.
Nf1 {[%clk 0:00:07.3]} 60... g3+ {[%clk 0:00:13]} 61. Kg1 {[%clk 0:00:07.7]}
61... h3 {[%clk 0:00:12.8]} 62. Nd2 {[%clk 0:00:07]} 62... Bg4 {[%clk
0:00:11.6]} 63. Kf1 {[%clk 0:00:06.6]} 63... Bf5 {[%clk 0:00:08.3]} 64. Ke2
{[%clk 0:00:06.1]} 64... h2 {[%clk 0:00:08.1]} 0-1

[Event "*** Titled Tuesday Blitz"]
[Site "Chess.com"]
[Date "2020.05.19"]
[Round "8"]
[White "XiaoKangZhong"]
[Black "FeketeBarika"]
[Result "1-0"]
[WhiteElo "2407"]
[BlackElo "2258"]
[TimeControl "180+1"]
[EndTime "13:37:44 PDT"]
[Termination "XiaoKangZhong won by resignation"]

1. e4 {[%clk 0:03:00.9]} 1... e6 {[%clk 0:02:56.1]} 2. d4 {[%clk 0:03:01]} 2...
d5 {[%clk 0:02:57]} 3. Nd2 {[%clk 0:03:01.3]} 3... Be7 {[%clk 0:02:56.5]} 4. Bd3
{[%clk 0:02:58.1]} 4... c5 {[%clk 0:02:55.2]} 5. c3 {[%clk 0:02:52.9]} 5... Nc6
{[%clk 0:02:51.7]} 6. Ngf3 {[%clk 0:02:45.9]} 6... cxd4 {[%clk 0:02:49.8]} 7.
cxd4 {[%clk 0:02:44.1]} 7... dxe4 {[%clk 0:02:49.8]} 8. Nxe4 {[%clk 0:02:43.9]}
8... Nf6 {[%clk 0:02:50.2]} 9. O-O {[%clk 0:02:43.2]} 9... O-O {[%clk
0:02:09.5]} 10. a3 {[%clk 0:02:31.9]} 10... a6 {[%clk 0:02:06.8]} 11. Nxf6+
{[%clk 0:02:26.1]} 11... Bxf6 {[%clk 0:02:05.2]} 12. Be3 {[%clk 0:02:27]} 12...
b5 {[%clk 0:02:02]} 13. Rc1 {[%clk 0:02:25.8]} 13... Bb7 {[%clk 0:02:02]} 14.
Be4 {[%clk 0:02:23.7]} 14... Rc8 {[%clk 0:01:47.3]} 15. Ne5 {[%clk 0:01:58.8]}
15... Na5 {[%clk 0:01:32.7]} 16. Qf3 {[%clk 0:01:18.4]} 16... Bxe4 {[%clk
0:01:28.5]} 17. Qxe4 {[%clk 0:01:19.3]} 17... Nb3 {[%clk 0:01:05.2]} 18. Rxc8
{[%clk 0:01:08.8]} 18... Qxc8 {[%clk 0:01:06.1]} 19. Qd3 {[%clk 0:01:01.6]}
19... Na5 {[%clk 0:01:04]} 20. b4 {[%clk 0:00:55.4]} 20... Nb7 {[%clk
0:01:02.9]} 21. Rc1 {[%clk 0:00:54]} 21... Qd8 {[%clk 0:00:55.5]} 22. Qe4 {[%clk
0:00:46.8]} 22... Nd6 {[%clk 0:00:54.2]} 23. Qc6 {[%clk 0:00:47]} 23... Bxe5
{[%clk 0:00:31.8]} 24. dxe5 {[%clk 0:00:44.8]} 24... Nc4 {[%clk 0:00:31.7]} 25.
Bc5 {[%clk 0:00:43.1]} 25... Re8 {[%clk 0:00:30.7]} 26. Qxa6 {[%clk 0:00:36.9]}
26... Nxe5 {[%clk 0:00:29]} 27. Qxb5 {[%clk 0:00:34.8]} 27... h6 {[%clk
0:00:28.1]} 28. a4 {[%clk 0:00:30]} 28... Qa8 {[%clk 0:00:14.1]} 29. a5 {[%clk
0:00:28.6]} 29... Rd8 {[%clk 0:00:10.9]} 30. Rf1 {[%clk 0:00:28]} 30... Nd3
{[%clk 0:00:08.1]} 31. Bb6 {[%clk 0:00:28.1]} 31... Rd5 {[%clk 0:00:06.3]} 32.
Qc4 {[%clk 0:00:26.3]} 32... g6 {[%clk 0:00:05.6]} 33. b5 {[%clk 0:00:23.6]}
33... Ne5 {[%clk 0:00:05.4]} 34. Qb3 {[%clk 0:00:21.8]} 34... Nd7 {[%clk
0:00:05.4]} 35. Bc7 {[%clk 0:00:21.1]} 35... Qb7 {[%clk 0:00:04.9]} 36. b6
{[%clk 0:00:20.8]} 36... Rxa5 {[%clk 0:00:04.3]} 37. Qd3 {[%clk 0:00:20.7]}
37... Rd5 {[%clk 0:00:04.3]} 38. Qb3 {[%clk 0:00:20.5]} 38... Nc5 {[%clk
0:00:04.3]} 39. Qb5 {[%clk 0:00:20.2]} 39... Na6 {[%clk 0:00:04.3]} 40. Qe8+
{[%clk 0:00:20.3]} 40... Kg7 {[%clk 0:00:04.4]} 41. Qe7 {[%clk 0:00:20.7]} 41...
Nxc7 {[%clk 0:00:03.7]} 42. bxc7 {[%clk 0:00:18.5]} 42... Qc6 {[%clk 0:00:03.8]}
43. Qd8 {[%clk 0:00:17.8]} 43... Rc5 {[%clk 0:00:03.2]} 44. Qd4+ {[%clk
0:00:17.9]} 44... e5 {[%clk 0:00:02.8]} 45. Qe3 {[%clk 0:00:16.4]} 45... Qxc7
{[%clk 0:00:02.9]} 46. f3 {[%clk 0:00:16.4]} 46... Qe7 {[%clk 0:00:03]} 47. Qf2
{[%clk 0:00:16.6]} 47... Rc7 {[%clk 0:00:03.4]} 48. Re1 {[%clk 0:00:17.2]} 48...
Rd7 {[%clk 0:00:03.9]} 49. Qb2 {[%clk 0:00:17.5]} 49... f6 {[%clk 0:00:03.2]}
50. Qe2 {[%clk 0:00:17.7]} 50... Qc5+ {[%clk 0:00:03.2]} 51. Kh1 {[%clk
0:00:16.7]} 51... Rf7 {[%clk 0:00:02.9]} 52. h3 {[%clk 0:00:16.9]} 52... Qd6
{[%clk 0:00:03]} 53. Qe4 {[%clk 0:00:16.8]} 53... Qd4 {[%clk 0:00:03.4]} 54.
Qxd4 {[%clk 0:00:15.3]} 54... exd4 {[%clk 0:00:04.3]} 55. Rd1 {[%clk 0:00:15.8]}
55... Rd7 {[%clk 0:00:04.2]} 56. Kg1 {[%clk 0:00:16.3]} 56... f5 {[%clk
0:00:05.1]} 57. Kf2 {[%clk 0:00:17.2]} 57... Kf6 {[%clk 0:00:05.5]} 58. f4
{[%clk 0:00:17.7]} 58... Ke6 {[%clk 0:00:05.6]} 59. Ke2 {[%clk 0:00:17.5]} 59...
Kd5 {[%clk 0:00:06]} 60. Kd3 {[%clk 0:00:18]} 60... Ra7 {[%clk 0:00:06.3]} 61.
Rb1 {[%clk 0:00:17.5]} 61... Ra3+ {[%clk 0:00:06.6]} 62. Kd2 {[%clk 0:00:18.2]}
62... Ke4 {[%clk 0:00:07]} 63. Rb6 {[%clk 0:00:18.7]} 63... Ra2+ {[%clk
0:00:07.3]} 64. Kc1 {[%clk 0:00:19.3]} 64... Kd3 {[%clk 0:00:07.5]} 65. Rxg6
{[%clk 0:00:19.1]} 65... Ra1+ {[%clk 0:00:07.7]} 66. Kb2 {[%clk 0:00:19.1]}
66... Rf1 {[%clk 0:00:08.6]} 67. Rxh6 {[%clk 0:00:18.7]} 67... Kd2 {[%clk
0:00:08.6]} 68. Rd6 {[%clk 0:00:17.7]} 68... d3 {[%clk 0:00:09]} 69. Rd4 {[%clk
0:00:17.2]} 69... Rxf4 {[%clk 0:00:09.3]} 70. Rxf4 {[%clk 0:00:16.7]} 70... Ke2
{[%clk 0:00:09.9]} 71. Rxf5 {[%clk 0:00:17]} 71... d2 {[%clk 0:00:10.3]} 72. Rd5
{[%clk 0:00:17.6]} 72... d1=Q {[%clk 0:00:09.6]} 73. Rxd1 {[%clk 0:00:17.7]}
73... Kxd1 {[%clk 0:00:10.5]} 74. h4 {[%clk 0:00:18.3]} 1-0